bitfinex/quotes_BTCUSD_20220111
["timestamp","ask_amount","ask_price","bid_price","bid_amount"]
[1641939270843,0.43911142,42667.0,42660.0,0.37042442]
[1641939271043,0.05860385,42666.0,42660.0,0.05125]
[1641939271242,0.05860385,42666.0,42660.0,0.00125]
[1641939271444,0.05860385,42666.0,42660.0,0.00825]
[1641939272245,0.11721334,42665.0,42660.0,0.00825]
[1641939272693,0.11721334,42665.0,42660.0,0.00125]
[1641939273492,0.15721334,42665.0,42660.0,0.00825]
[1641939273894,0.15721334,42665.0,42660.0,0.0089334]
[1641939274695,0.11721334,42665.0,42660.0,0.0019334]
[1641939274898,0.05860336,42666.0,42660.0,0.0019334]
[1641939275495,0.09860336,42666.0,42660.0,0.0089334]
[1641939275699,0.04,42666.0,42660.0,0.0089334]
[1641939276147,0.04,42666.0,42660.0,0.00893339]
[1641939276739,0.53911142,42667.0,42660.0,0.00193339]
[1641939277440,0.57911142,42667.0,42660.0,0.00893339]
[1641939278442,0.57911142,42667.0,42660.0,0.0087951]
[1641939278643,0.63771432,42667.0,42660.0,0.0017951]
[1641939278842,0.59771432,42667.0,42660.0,0.0017951]
[1641939279042,0.49771432,42667.0,42660.0,0.0017951]
[1641939279243,0.43911142,42667.0,42660.0,0.0017951]
[1641939279443,0.45411142,42667.0,42660.0,0.0087951]
[1641939280693,0.43911142,42667.0,42660.0,0.0017951]
[1641939280896,0.49771371,42667.0,42660.0,0.0017951]
[1641939281093,0.59771371,42667.0,42660.0,0.0017951]
[1641939281494,0.69631771,42667.0,42660.0,0.0087951]
[1641939281693,0.59631771,42667.0,42660.0,0.0087951]
[1641939283207,0.69631771,42667.0,42660.0,0.00882308]
[1641939283646,0.69631771,42667.0,42660.0,0.01582308]
[1641939283647,0.73631771,42667.0,42660.0,0.01582308]
[1641939284341,0.67771371,42667.0,42660.0,0.01582308]
[1641939284741,0.59771371,42667.0,42660.0,0.00182308]
[1641939285543,0.63871371,42667.0,42660.0,0.00882308]
[1641939286144,0.53871371,42667.0,42660.0,0.00882308]
[1641939286545,0.59731771,42667.0,42660.0,0.00882308]
[1641939286845,0.55631771,42667.0,42660.0,0.00181742]
[1641939287491,0.05860519,42666.0,42660.0,0.00881742]
[1641939288693,0.05860519,42666.0,42660.0,0.00181742]
[1641939289495,0.09860519,42666.0,42660.0,0.00881742]
[1641939290493,0.09860519,42666.0,42660.0,0.00881679]
[1641939290895,0.058607,42665.0,42660.0,0.00181679]
[1641939291544,0.075607,42665.0,42660.0,0.00781679]
[1641939291746,0.075607,42665.0,42660.0,0.00781857]
[1641939292744,0.075607,42665.0,42660.0,0.00181857]
[1641939292944,0.058607,42665.0,42660.0,0.00181857]
[1641939293648,0.075607,42665.0,42660.0,0.00781857]
[1641939294046,0.075607,42665.0,42660.0,0.0078187]
[1641939294892,0.058607,42665.0,42660.0,0.0018187]
[1641939295295,0.058607,42665.0,42660.0,0.00181834]
[1641939295694,0.074607,42665.0,42660.0,0.00781834]
[1641939296998,0.058607,42665.0,42660.0,0.00181834]
[1641939297596,0.073607,42665.0,42660.0,0.00881831]
[1641939297796,0.823607,42665.0,42660.0,0.00881831]
[1641939298852,0.823607,42665.0,42660.0,0.00181838]
[1641939298853,0.808607,42665.0,42660.0,0.00181838]
[1641939299649,0.821607,42665.0,42660.0,0.00881838]
[1641939299849,0.763,42665.0,42660.0,0.00881838]
[1641939300750,0.75,42665.0,42660.0,0.00181838]
[1641939301354,0.75,42665.0,42660.0,0.00181839]
[1641939301553,0.765,42665.0,42660.0,0.00881839]
[1641939301754,0.765,42665.0,42662.0,0.0012614]
[1641939302594,0.765,42665.0,42664.0,0.40124212]
[1641939302793,0.75,42665.0,42664.0,0.40124212]
[1641939302994,0.75,42665.0,42664.0,0.45124212]
[1641939303595,0.6427,42665.0,42664.0,0.46324212]
[1641939303795,0.00070213,42668.0,42664.0,0.88992151]
[1641939303998,0.00070213,42668.0,42667.0,0.425391]
[1641939304196,0.00070213,42668.0,42667.0,0.58521946]
[1641939304395,0.00070213,42668.0,42667.0,0.48521946]
[1641939304596,0.597767,42678.0,42667.0,0.48521946]
[1641939304796,0.00015,42680.0,42676.0,0.28380827]
[1641939305196,0.00015,42680.0,42676.0,0.33380827]
[1641939305596,0.00015,42680.0,42676.0,0.33780827]
[1641939306744,0.00015,42680.0,42676.0,0.33380827]
[1641939307545,0.00015,42680.0,42676.0,0.34180827]
[1641939308146,0.00015,42680.0,42677.0,0.47005768]
[1641939308546,0.0009303,42680.0,42677.0,0.47005768]
[1641939308946,0.18426396,42682.0,42677.0,0.47005768]
[1641939309445,0.05134395,42680.0,42677.0,0.47005768]
[1641939309645,0.1026879,42680.0,42677.0,0.47805768]
[1641939309897,0.1026879,42680.0,42678.0,0.375391]
[1641939310095,0.1026879,42680.0,42678.0,0.425391]
[1641939311701,0.1026879,42680.0,42678.0,0.432391]
[1641939312903,0.1026879,42680.0,42678.0,0.425391]
[1641939313643,0.1026879,42680.0,42678.0,0.433391]
[1641939314443,0.18510814,42682.0,42678.0,0.433391]
[1641939314646,0.05134395,42680.0,42678.0,0.433391]
[1641939314945,0.1026879,42680.0,42679.0,0.30895534]
[1641939315145,0.1026879,42680.0,42679.0,0.68434634]
[1641939315747,0.1026879,42680.0,42679.0,0.69234634]
[1641939316545,0.1026879,42680.0,42679.0,0.383391]
[1641939316947,0.1026879,42680.0,42679.0,0.375391]
[1641939317394,0.1026879,42680.0,42679.0,0.68542523]
[1641939317594,0.1026879,42680.0,42679.0,0.69542523]
[1641939318996,0.1026879,42680.0,42679.0,0.68542523]
[1641939319596,0.1026879,42680.0,42679.0,0.69642523]
[1641939321447,0.1026879,42680.0,42679.0,0.68542523]
[1641939321645,0.1026879,42680.0,42679.0,0.69642523]
[1641939323250,0.1026879,42680.0,42679.0,0.375391]
[1641939323648,0.1026879,42680.0,42679.0,0.01]
[1641939324448,0.55794616,42680.0,42679.0,0.01]
[1641939324895,0.55794616,42680.0,42674.0,0.00121753]
[1641939325096,0.44163145,42678.0,42674.0,0.00121753]
[1641939325495,0.05134395,42676.0,42674.0,0.00121753]
[1641939325698,0.1026879,42676.0,42674.0,0.00921753]
[1641939326899,0.1026879,42676.0,42674.0,0.00121753]
[1641939327799,0.1286879,42676.0,42674.0,0.00621753]
[1641939328659,0.1286879,42676.0,42674.0,0.005]
[1641939328846,0.1286879,42676.0,42673.0,0.009368]
[1641939329047,0.1026879,42676.0,42673.0,0.009368]
[1641939329750,0.1246879,42676.0,42673.0,0.015368]
[1641939329946,0.1246879,42676.0,42673.0,0.006]
[1641939330547,0.022,42676.0,42673.0,0.006]
[1641939330747,0.05134395,42674.0,42673.0,0.006]
[1641939330948,0.1026879,42674.0,42671.0,0.0005785]
[1641939331148,0.1026879,42674.0,42672.0,0.375391]
[1641939331846,0.1216879,42674.0,42672.0,0.385391]
[1641939332999,0.1026879,42674.0,42672.0,0.375391]
[1641939333200,0.1026879,42674.0,42672.0,0.433966]
[1641939333402,0.1026879,42674.0,42672.0,0.474968]
[1641939333802,0.1216879,42674.0,42672.0,0.484968]
[1641939334806,0.1216879,42674.0,42672.0,0.443966]
[1641939335003,0.1026879,42674.0,42672.0,0.433966]
[1641939335804,0.36345739,42678.0,42672.0,0.442966]
[1641939336248,0.05134395,42675.0,42672.0,0.442966]
[1641939337146,0.05134395,42675.0,42672.0,0.433966]
[1641939337545,0.05134395,42675.0,42672.0,0.428966]
[1641939337756,0.05134395,42675.0,42672.0,0.438966]
[1641939339048,0.05134395,42675.0,42672.0,0.428966]
[1641939339649,0.05134395,42675.0,42672.0,0.438966]
[1641939340698,0.05134395,42675.0,42672.0,0.380391]
[1641939340899,0.05134395,42675.0,42672.0,0.411394]
[1641939341102,0.39265518,42680.0,42672.0,0.411394]
[1641939341299,0.39265518,42680.0,42672.0,0.041003]
[1641939341499,0.05134395,42676.0,42672.0,0.041003]
[1641939341699,0.05134395,42676.0,42673.0,0.425307]
[1641939342700,0.05134395,42676.0,42673.0,0.375307]
[1641939343944,0.05134395,42676.0,42673.0,0.383307]
[1641939344946,0.05134395,42676.0,42673.0,0.375307]
[1641939345746,0.05134395,42676.0,42673.0,0.383307]
[1641939346548,0.05134395,42676.0,42675.0,0.00121553]
[1641939346749,0.00070096,42682.0,42675.0,0.37652253]
[1641939346948,0.05134395,42676.0,42675.0,0.00121553]
[1641939347150,0.05134395,42676.0,42675.0,0.43508753]
[1641939347395,0.05134395,42676.0,42675.0,0.77448887]
[1641939347596,0.05134395,42676.0,42675.0,0.82448887]
[1641939347798,0.05134395,42676.0,42675.0,0.83448887]
[1641939348596,0.05134395,42676.0,42675.0,1.28747058]
[1641939349497,0.05134395,42676.0,42675.0,1.27747058]
[1641939349697,0.05134395,42676.0,42675.0,1.29047058]
[1641939350306,0.00070097,42682.0,42677.0,0.00722033]
[1641939350500,0.00070097,42682.0,42679.0,0.25182082]
[1641939350901,0.00070097,42682.0,42677.0,0.058567]
[1641939350902,0.00070097,42682.0,42678.0,0.05856656]
[1641939351755,0.00070101,42682.0,42678.0,0.06756656]
[1641939352157,0.00070101,42682.0,42679.0,0.302894]
[1641939352961,0.00791156,42683.0,42679.0,0.302894]
[1641939353856,0.00791156,42683.0,42679.0,0.310894]
[1641939355100,0.00791156,42683.0,42679.0,0.302894]
[1641939355303,0.00791155,42683.0,42679.0,0.302894]
[1641939355504,0.00791155,42683.0,42675.0,0.81218653]
[1641939355702,0.00791155,42683.0,42676.0,0.058569]
[1641939355902,0.00791155,42683.0,42679.0,0.008]
[1641939356502,0.00070101,42682.0,42679.0,0.008]
[1641939357104,0.00070101,42682.0,42677.0,0.30809353]
[1641939357403,0.00070101,42682.0,42678.0,0.058567]
[1641939357604,0.00070101,42682.0,42677.0,0.30809353]
[1641939357803,0.00791156,42683.0,42677.0,0.31809353]
[1641939358953,0.00070101,42682.0,42677.0,0.30809353]
[1641939359754,0.00070101,42682.0,42677.0,0.31609353]
[1641939361756,0.00070101,42682.0,42677.0,0.32509353]
[1641939362156,0.00070101,42682.0,42678.0,0.058567]
[1641939362398,0.00070101,42682.0,42677.0,0.07556745]
[1641939363401,0.00070101,42682.0,42679.0,0.27220068]
[1641939365101,0.00791156,42683.0,42679.0,0.27220068]
[1641939365902,0.00791156,42683.0,42679.0,0.27720068]
[1641939366145,0.00791155,42683.0,42679.0,0.27720068]
[1641939367145,0.00791155,42683.0,42679.0,0.27220068]
[1641939367347,0.00791155,42683.0,42677.0,0.05856841]
[1641939367746,0.00791155,42683.0,42679.0,0.005]
[1641939369148,0.00791155,42683.0,42678.0,0.058567]
[1641939369447,0.00791155,42683.0,42678.0,0.33866866]
[1641939369897,0.00791155,42683.0,42678.0,0.34466866]
[1641939370899,0.00791156,42683.0,42678.0,0.34466866]
[1641939371097,0.00791156,42683.0,42678.0,0.33866866]
[1641939371900,0.00791156,42683.0,42678.0,0.34566866]
[1641939372999,0.00791156,42683.0,42678.0,0.33866866]
[1641939373201,0.00861257,42683.0,42678.0,0.33866866]
[1641939373403,0.00791156,42683.0,42678.0,0.33866866]
[1641939373855,0.00791156,42683.0,42678.0,0.34566866]
[1641939374453,0.00791156,42683.0,42678.0,0.40423649]
[1641939375054,0.00791156,42683.0,42678.0,0.45580449]
[1641939375653,0.00791156,42683.0,42678.0,0.39723649]
[1641939375855,0.00791156,42683.0,42678.0,0.40423649]
[1641939376453,0.00791156,42683.0,42678.0,0.34566866]
[1641939377055,0.00791156,42683.0,42678.0,0.33866866]
[1641939377255,0.00791156,42683.0,42677.0,0.29900865]
[1641939377499,0.00791156,42683.0,42674.0,0.59280351]
[1641939377699,0.00791156,42683.0,42674.0,0.28862115]
[1641939377998,0.00791156,42683.0,42677.0,0.009]
[1641939378199,0.00070101,42682.0,42677.0,0.009]
[1641939378999,0.00070101,42682.0,42675.0,0.29442166]
[1641939379898,0.00070101,42682.0,42675.0,0.30542166]
[1641939380500,0.000701,42682.0,42675.0,0.30542166]
[1641939381000,0.000701,42682.0,42675.0,0.29442166]
[1641939381447,0.33728045,42680.0,42675.0,0.29442166]
[1641939381651,0.33728045,42680.0,42671.0,0.00057827]
[1641939381847,0.14207088,42679.0,42675.0,0.011]
[1641939382248,0.33728045,42680.0,42675.0,0.011]
[1641939382448,0.63210592,42680.0,42675.0,0.011]
[1641939383049,0.63210592,42680.0,42671.0,0.30300858]
[1641939383253,0.42935527,42673.0,42671.0,0.30300858]
[1641939383451,0.42935527,42673.0,42671.0,0.00057828]
[1641939383853,0.43035527,42673.0,42671.0,0.04457828]
[1641939384053,0.76123244,42673.0,42671.0,0.044]
[1641939385105,0.76023244,42673.0,42670.0,0.00057833]
[1641939385504,0.76023244,42673.0,42670.0,0.00072833]
[1641939385906,0.76623244,42673.0,42670.0,0.36023964]
[1641939386705,0.33687717,42673.0,42670.0,0.35966131]
[1641939386904,0.33687717,42673.0,42670.0,0.01515]
[1641939387105,0.33687717,42673.0,42670.0,0.00015]
[1641939387106,0.33087717,42673.0,42670.0,0.00015]
[1641939387906,0.33587717,42673.0,42670.0,0.01315]
[1641939389155,0.33087717,42673.0,42670.0,0.00015]
[1641939389852,0.33287717,42673.0,42670.0,0.01515]
[1641939390251,0.002,42673.0,42670.0,0.01515]
[1641939391055,0.49394546,42676.0,42670.0,0.00015]
[1641939391656,0.39439442,42675.0,42670.0,0.00015]
[1641939391855,0.39439442,42675.0,42670.0,0.01315]
[1641939392700,0.39439442,42675.0,42670.0,0.0137283]
[1641939393100,0.39439442,42675.0,42670.0,0.0007283]
[1641939393901,0.39839442,42675.0,42670.0,0.0137283]
[1641939394702,0.39839442,42675.0,42670.0,0.13088544]
[1641939395103,0.39839442,42675.0,42670.0,0.11788544]
[1641939395304,0.39439442,42675.0,42670.0,0.11788544]
[1641939395503,0.39439442,42675.0,42670.0,0.05930644]
[1641939395703,0.39439442,42675.0,42670.0,0.34109779]
[1641939395903,0.39839442,42675.0,42670.0,0.35409779]
[1641939396160,0.39839442,42675.0,42670.0,0.3540978]
[1641939396953,0.004,42675.0,42670.0,0.3540978]
[1641939397152,0.1,42679.0,42670.0,0.3410978]
[1641939397954,0.104,42679.0,42670.0,0.3540978]
[1641939398455,0.004,42679.0,42670.0,0.3540978]
[1641939398653,0.004,42679.0,42671.0,0.00057829]
[1641939399157,0.41209626,42680.0,42671.0,0.00057829]
[1641939399655,0.36717834,42677.0,42671.0,0.00057829]
[1641939399910,0.36717834,42677.0,42671.0,0.01057828]
[1641939401110,0.36717834,42677.0,42671.0,0.00057829]
[1641939401910,0.37717834,42677.0,42671.0,0.01057829]
[1641939402114,0.37717834,42677.0,42671.0,0.01115658]
[1641939402311,0.37717834,42677.0,42671.0,0.01057829]
[1641939403113,0.36717834,42677.0,42671.0,0.00057829]
[1641939403310,0.36717834,42677.0,42671.0,0.00115659]
[1641939403511,0.43261705,42682.0,42672.0,0.058575]
[1641939403957,0.005,42677.0,42672.0,0.058575]
[1641939405258,0.28741588,42681.0,42672.0,0.058575]
[1641939405459,0.28741588,42681.0,42671.0,0.00057829]
[1641939405859,0.30041588,42681.0,42676.0,0.05857043]
[1641939406058,0.30041588,42681.0,42674.0,0.058573]
[1641939406960,0.013,42681.0,42674.0,0.11714578]
[1641939407162,0.44894157,42682.0,42674.0,0.11714578]
[1641939408000,0.44894157,42682.0,42674.0,0.12514578]
[1641939408001,0.28076356,42681.0,42674.0,0.12514578]
[1641939408402,0.28076356,42681.0,42674.0,0.008]
[1641939409100,0.28076356,42681.0,42671.0,0.00057827]
[1641939409703,0.28076356,42681.0,42673.0,0.058575]
[1641939409901,0.28276356,42681.0,42671.0,0.01357827]
[1641939410701,0.28276356,42681.0,42671.0,0.07215528]
[1641939410902,0.28276356,42681.0,42671.0,0.01357828]
[1641939411154,0.28076356,42681.0,42671.0,0.00057828]
[1641939411851,0.33934856,42681.0,42671.0,0.00057829]
[1641939412050,0.44234856,42681.0,42671.0,0.01357829]
[1641939412254,0.108247,42680.0,42671.0,0.01357829]
[1641939412850,0.38376356,42681.0,42671.0,0.01357829]
[1641939413051,0.108247,42680.0,42671.0,0.34756885]
[1641939413250,0.108247,42680.0,42671.0,0.33456885]
[1641939413950,0.116247,42680.0,42671.0,0.34156885]
[1641939414351,0.008,42680.0,42671.0,0.34156885]
[1641939414552,0.44446216,42674.0,42671.0,0.34156885]
[1641939415204,0.44446216,42674.0,42671.0,0.33456885]
[1641939415398,0.44446216,42674.0,42671.0,0.33399056]
[1641939415599,0.44446216,42674.0,42670.0,0.00057831]
[1641939415899,0.44446216,42674.0,42671.0,0.011]
[1641939416099,0.45146216,42674.0,42671.0,0.011]
[1641939416300,0.36784267,42673.0,42671.0,0.011]
[1641939416500,0.29484837,42672.0,42671.0,0.011]
[1641939416901,0.40309537,42672.0,42671.0,0.011]
[1641939417303,0.40309537,42672.0,42670.0,0.00072831]
[1641939417501,0.42626041,42671.0,42670.0,0.00072831]
[1641939417902,0.42626041,42671.0,42670.0,0.00015]
[1641939417903,0.46626041,42671.0,42670.0,0.00015]
[1641939418659,0.35801341,42671.0,42670.0,0.00015]
[1641939419353,0.31801341,42671.0,42669.0,0.00015]
[1641939419956,0.37201341,42671.0,42669.0,0.00015]
[1641939420153,0.28349268,42670.0,42669.0,0.00015]
[1641939421355,0.28311238,42670.0,42669.0,0.00015]
[1641939421755,0.28311238,42670.0,42668.0,0.00015]
[1641939421955,0.33311238,42670.0,42669.0,0.001]
[1641939422156,0.05,42670.0,42669.0,0.001]
[1641939422412,0.05,42670.0,42669.0,0.00115]
[1641939422617,0.34193941,42670.0,42669.0,0.00115]
[1641939422912,0.35325737,42670.0,42669.0,0.00115]
[1641939423313,0.35325737,42670.0,42669.0,0.00015]
[1641939423314,0.30325737,42670.0,42669.0,0.00015]
[1641939423714,0.30325737,42670.0,42668.0,0.00015]
[1641939423913,0.34825737,42670.0,42669.0,0.001]
[1641939424315,0.34825737,42670.0,42669.0,0.00115]
[1641939425416,0.30325737,42670.0,42669.0,0.00015]
[1641939425916,0.34825737,42670.0,42669.0,0.001]
[1641939426449,0.34825737,42670.0,42669.0,0.00115]
[1641939427249,0.30325737,42670.0,42669.0,0.00015]
[1641939427653,0.30325737,42670.0,42668.0,0.00015]
[1641939427850,0.31530949,42673.0,42668.0,0.00015]
[1641939428050,0.035,42670.0,42669.0,0.002]
[1641939428451,0.035,42670.0,42669.0,0.00215]
[1641939429251,0.31530949,42673.0,42669.0,0.00015]
[1641939429909,0.31530949,42673.0,42669.0,0.00115]
[1641939430109,0.36330949,42673.0,42669.0,0.00115]
[1641939430313,0.36330949,42673.0,42670.0,0.00015]
[1641939430909,0.46330949,42673.0,42670.0,0.00015]
[1641939431112,0.148,42673.0,42670.0,0.00015]
[1641939431709,0.4308313,42673.0,42670.0,0.00015]
[1641939431910,0.4978313,42673.0,42670.0,0.00015]
[1641939432110,0.108247,42672.0,42670.0,0.00015]
[1641939432509,0.28090007,42671.0,42670.0,0.00015]
[1641939433111,0.115,42673.0,42670.0,0.00015]
[1641939433309,0.28139092,42673.0,42670.0,0.00015]
[1641939433751,0.108247,42672.0,42670.0,0.00015]
[1641939433950,0.108247,42672.0,42669.0,0.00015]
[1641939434153,0.158,42673.0,42669.0,0.00015]
[1641939434350,0.44054426,42673.0,42669.0,0.00015]
[1641939435753,0.38254426,42673.0,42669.0,0.00072834]
[1641939435951,0.46454426,42673.0,42669.0,0.00072834]
[1641939436152,0.46454426,42673.0,42670.0,0.00015]
[1641939437152,0.38254426,42673.0,42670.0,0.00015]
[1641939437400,0.28254426,42673.0,42670.0,0.00015]
[1641939438003,0.33454426,42673.0,42670.0,0.00015]
[1641939438207,0.43454426,42673.0,42670.0,0.00015]
[1641939439304,0.38254426,42673.0,42670.0,0.00015]
[1641939440104,0.45848908,42673.0,42670.0,0.00015]
[1641939441953,0.51048908,42673.0,42670.0,0.00015]
[1641939442154,0.226,42673.0,42670.0,0.00015]
[1641939442556,0.126,42673.0,42670.0,0.00015]
[1641939442753,0.28087677,42672.0,42670.0,0.00015]
[1641939442955,0.126,42673.0,42670.0,0.00015]
[1641939443257,0.44446216,42674.0,42670.0,0.00015]
[1641939443856,0.40199122,42673.0,42670.0,0.00015]
[1641939444054,0.52446216,42674.0,42670.0,0.00015]
[1641939444254,0.52446216,42674.0,42670.0,0.00072831]
[1641939444255,0.28495388,42673.0,42670.0,0.00072831]
[1641939445504,0.28495388,42673.0,42670.0,0.00015]
[1641939445705,0.82443743,42674.0,42670.0,0.00015]
[1641939446011,0.058,42673.0,42670.0,0.00015]
[1641939446605,0.058,42673.0,42670.0,0.00072831]
[1641939447205,0.44446216,42674.0,42670.0,0.00072831]
[1641939448007,0.47246216,42674.0,42670.0,0.00172831]
[1641939448952,0.47246216,42674.0,42670.0,0.00230663]
[1641939449154,0.47246216,42674.0,42670.0,0.00072832]
[1641939449353,0.44446216,42674.0,42670.0,0.00072832]
[1641939449553,0.28581469,42673.0,42670.0,0.00072832]
[1641939449753,0.44446216,42674.0,42670.0,0.00072832]
[1641939450153,0.032,42673.0,42670.0,0.00172832]
[1641939450355,0.032,42673.0,42670.0,0.00115]
[1641939451157,0.032,42673.0,42670.0,0.00015]
[1641939451356,0.44446216,42674.0,42670.0,0.00015]
[1641939451961,0.46346216,42674.0,42670.0,0.00315]
[1641939452607,0.46346216,42674.0,42670.0,0.00372831]
[1641939453206,0.46346216,42674.0,42670.0,0.00072831]
[1641939453404,0.44446216,42674.0,42670.0,0.00072831]
[1641939454004,0.44446216,42674.0,42670.0,0.01172831]
[1641939455205,0.44446216,42674.0,42670.0,0.00072831]
[1641939456004,0.47546216,42674.0,42670.0,0.00972831]
[1641939456253,0.47546216,42674.0,42670.0,0.00972832]
[1641939457353,0.44446216,42674.0,42670.0,0.00130664]
[1641939457553,0.44446216,42674.0,42670.0,0.00072832]
[1641939458053,0.47546216,42674.0,42670.0,0.00972832]
[1641939458654,0.47546216,42674.0,42670.0,0.06830632]
[1641939459354,0.44446216,42674.0,42670.0,0.05930632]
[1641939459553,0.00720783,42675.0,42670.0,0.05930632]
[1641939459754,0.00720783,42675.0,42670.0,0.05988438]
[1641939460005,0.03020783,42675.0,42670.0,0.01072832]
[1641939461005,0.45351575,42674.0,42670.0,0.0107283]
[1641939461207,0.45351575,42674.0,42670.0,0.0007283]
[1641939462007,0.48451575,42674.0,42670.0,0.0097283]
[1641939462207,0.48451575,42674.0,42670.0,0.00972832]
[1641939462808,0.48451575,42674.0,42671.0,0.05857624]
[1641939463407,0.45351575,42674.0,42671.0,0.05857624]
[1641939464055,0.48051575,42674.0,42671.0,0.06557624]
[1641939464655,0.48051575,42674.0,42671.0,0.007]
[1641939465257,0.45351575,42674.0,42670.0,0.00072831]
[1641939466056,0.46851575,42674.0,42670.0,0.00772831]
[1641939467057,0.46851575,42674.0,42670.0,0.00772832]
[1641939467257,0.45351575,42674.0,42670.0,0.00072832]
[1641939468101,0.013,42674.0,42670.0,0.06430542]
[1641939469004,0.013,42674.0,42670.0,0.06430632]
[1641939469202,0.013,42674.0,42670.0,0.05930632]
[1641939469403,0.00720783,42675.0,42670.0,0.05930632]
[1641939469602,0.00720783,42675.0,42670.0,0.00072832]
[1641939469801,0.00184937,42675.0,42670.0,0.00072832]
[1641939470002,0.00184937,42675.0,42670.0,0.01372832]
[1641939470204,0.00584937,42675.0,42670.0,0.01372832]
[1641939470602,0.00584937,42675.0,42670.0,0.01372831]
[1641939471255,0.00184937,42675.0,42670.0,0.00072831]
[1641939471855,0.00184937,42675.0,42670.0,0.0007283]
[1641939472059,0.01484937,42675.0,42670.0,0.0097283]
[1641939473057,0.01484937,42675.0,42670.0,0.00972831]
[1641939473259,0.00184937,42675.0,42670.0,0.00072831]
[1641939474157,0.01884937,42675.0,42670.0,0.00972831]
[1641939474357,0.01884937,42675.0,42670.0,0.05972831]
[1641939474905,0.41988553,42677.0,42670.0,0.00972831]
[1641939475105,0.00720784,42675.0,42670.0,0.00972831]
[1641939475403,0.00720784,42675.0,42670.0,0.00072831]
[1641939476303,0.00720784,42675.0,42670.0,0.00472831]
[1641939476304,0.01620784,42675.0,42670.0,0.00472831]
[1641939477405,0.00720784,42675.0,42670.0,0.00072831]
[1641939478206,0.01720784,42675.0,42670.0,0.00772831]
[1641939478954,0.01720784,42675.0,42670.0,0.00830662]
[1641939479153,0.01720784,42675.0,42670.0,0.00772831]
[1641939479353,0.00720784,42675.0,42670.0,0.00072831]
[1641939480154,0.01720784,42675.0,42671.0,0.058576]
[1641939480755,0.01720784,42675.0,42670.0,0.06730622]
[1641939481554,0.01720784,42675.0,42670.0,0.05930622]
[1641939481757,0.00720784,42675.0,42670.0,0.05930622]
[1641939482054,0.00720784,42675.0,42670.0,0.06730622]
[1641939482258,0.01820784,42675.0,42670.0,0.06730622]
[1641939482503,0.01820784,42675.0,42670.0,0.00872831]
[1641939483405,0.00720784,42675.0,42670.0,0.00072831]
[1641939484205,0.01520784,42675.0,42670.0,0.00672831]
[1641939484706,0.01520784,42675.0,42667.0,0.30190554]
[1641939484909,0.01520784,42675.0,42669.0,0.05857847]
[1641939485108,0.01520784,42675.0,42670.0,0.00057831]
[1641939485307,0.00720784,42675.0,42670.0,0.00057831]
[1641939486256,0.00720784,42675.0,42670.0,0.006]
[1641939486257,0.02320784,42675.0,42670.0,0.006]
[1641939487359,0.02320784,42675.0,42671.0,0.11715236]
[1641939487759,0.02320784,42675.0,42670.0,0.006]
[1641939488058,0.02620784,42675.0,42671.0,0.005]
[1641939489559,0.00720784,42675.0,42668.0,0.00057715]
[1641939489759,0.00720784,42675.0,42668.0,0.00115062]
[1641939490003,0.00720784,42675.0,42668.0,0.00057347]
[1641939490206,0.01720784,42675.0,42668.0,0.01057347]
[1641939491003,0.01720784,42675.0,42668.0,0.01057361]
[1641939491407,0.00720784,42675.0,42668.0,0.00057361]
[1641939492204,0.01120784,42675.0,42668.0,0.01157361]
[1641939493406,0.00720784,42675.0,42668.0,0.00057473]
[1641939494251,0.01420784,42675.0,42668.0,0.00957473]
[1641939494654,0.01420784,42675.0,42668.0,0.00957459]
[1641939495553,0.00720784,42675.0,42668.0,0.00057459]
[1641939495754,0.00720784,42675.0,42668.0,0.00114918]
[1641939495957,0.00720784,42675.0,42668.0,0.00057459]
[1641939496154,0.01020784,42675.0,42668.0,0.00757459]
[1641939496957,0.01020784,42675.0,42668.0,0.00814887]
[1641939497257,0.108247,42674.0,42668.0,0.00757428]
[1641939497506,0.01020784,42675.0,42668.0,0.00757428]
[1641939497808,0.108247,42674.0,42668.0,0.00757428]
[1641939498010,0.108247,42674.0,42668.0,0.00057428]
[1641939498206,0.108247,42674.0,42668.0,0.00657428]
[1641939498807,0.03120784,42675.0,42668.0,0.00714862]
[1641939499005,0.03120784,42675.0,42668.0,0.00657434]
[1641939499406,0.108247,42674.0,42668.0,0.00657434]
[1641939499608,0.03120784,42675.0,42668.0,0.00714868]
[1641939499906,0.00720784,42675.0,42668.0,0.00057434]
[1641939500107,0.03520784,42675.0,42668.0,0.00257434]
[1641939500909,0.028,42675.0,42668.0,0.00257434]
[1641939501352,0.42382628,42676.0,42668.0,0.334863]
[1641939501752,0.42382628,42676.0,42668.0,0.00057434]
[1641939502251,0.42382628,42676.0,42668.0,0.0055744]
[1641939502252,0.44482634,42676.0,42668.0,0.0055744]
[1641939502650,0.44482634,42676.0,42668.0,0.31941691]
[1641939503753,0.44482634,42676.0,42669.0,0.05858]
[1641939504153,0.46582634,42676.0,42669.0,0.05858]
[1641939505004,0.46582634,42676.0,42670.0,0.05857794]
[1641939505204,0.46582634,42676.0,42669.0,0.05858]
[1641939505603,0.42382633,42676.0,42669.0,0.05858]
[1641939506406,0.42382633,42676.0,42670.0,0.05857805]
[1641939506606,0.00070144,42676.0,42670.0,0.05857805]
[1641939507208,0.00070144,42676.0,42669.0,0.05858]
[1641939507409,0.00070144,42676.0,42670.0,0.0585783]
[1641939508312,0.02370144,42676.0,42670.0,0.0625783]
[1641939509160,0.02370144,42676.0,42672.0,0.05857557]
[1641939509357,0.02370145,42676.0,42672.0,0.05857557]
[1641939509657,0.02370145,42676.0,42671.0,0.058577]
[1641939510057,0.00070145,42676.0,42668.0,0.31441689]
[1641939510360,0.01870145,42676.0,42671.0,0.004]
[1641939511159,0.01870145,42676.0,42671.0,0.30810921]
[1641939511960,0.01870145,42676.0,42671.0,0.30410921]
[1641939512159,0.01570145,42676.0,42671.0,0.30810921]
[1641939513406,0.01570145,42676.0,42671.0,0.30410921]
[1641939513407,0.00070145,42676.0,42671.0,0.30410921]
[1641939513609,0.00070145,42676.0,42671.0,0.36268621]
[1641939514008,0.00070145,42676.0,42671.0,0.30410921]
[1641939514209,0.01870145,42676.0,42671.0,0.31210921]
[1641939514911,0.01870145,42676.0,42674.0,0.25448242]
[1641939515210,0.0194029,42676.0,42674.0,0.25448242]
[1641939515412,0.00070145,42676.0,42675.0,0.66054654]
[1641939515613,0.00070145,42676.0,42675.0,1.03585154]
[1641939516011,0.00070145,42676.0,42675.0,1.13585154]
[1641939516259,0.01870145,42676.0,42675.0,1.04585154]
[1641939516557,0.018,42676.0,42675.0,1.09585154]
[1641939516757,0.018,42676.0,42675.0,1.24585154]
[1641939517455,0.00720754,42677.0,42675.0,1.23585154]